[Event "Late-Titled-Tuesday-Blitz-May-14-2024"]
[Site "Chess.com"]
[Date "2024.05.14"]
[Round "4"]
[White "tarno17"]
[Black "nabukatnezarr"]
[Result "0-1"]
[WhiteElo "2223"]
[BlackElo "2628"]
[TimeControl "180+1"]
[EndTime "14:39:30 PDT"]
[Termination "nabukatnezarr won on time"]

1. e4 {[%clk 0:03:00.9]} 1... c6 {[%clk 0:02:57.2]} 2. d4 {[%clk 0:03:00.7]}
2... d5 {[%clk 0:02:56.9]} 3. Nc3 {[%clk 0:03:00.3]} 3... dxe4 {[%clk
0:02:50.2]} 4. Nxe4 {[%clk 0:03:00.2]} 4... Nf6 {[%clk 0:02:43.6]} 5. Ng5 {[%clk
0:02:57.5]} 5... h6 {[%clk 0:02:21.5]} 6. Nxf7 {[%clk 0:02:55.6]} 6... Kxf7
{[%clk 0:02:13.7]} 7. Nf3 {[%clk 0:02:55.5]} 7... Be6 {[%clk 0:01:51.6]} 8. Ne5+
{[%clk 0:02:25.8]} 8... Kg8 {[%clk 0:01:51.3]} 9. Bd3 {[%clk 0:02:00]} 9... c5
{[%clk 0:01:26.7]} 10. c3 {[%clk 0:01:13.8]} 10... cxd4 {[%clk 0:01:16.7]} 11.
cxd4 {[%clk 0:01:10.7]} 11... Nc6 {[%clk 0:01:15.2]} 12. O-O {[%clk 0:00:53.2]}
12... Bd5 {[%clk 0:00:52.5]} 13. Bg6 {[%clk 0:00:21.2]} 13... Nd7 {[%clk
0:00:22.2]} 14. f4 {[%clk 0:00:18]} 14... Qc7 {[%clk 0:00:15.8]} 15. Qg4 {[%clk
0:00:10.1]} 15... Nf6 {[%clk 0:00:15.2]} 16. Qg3 {[%clk 0:00:05.9]} 16... Nxd4
{[%clk 0:00:14.9]} 17. Kh1 {[%clk 0:00:03.8]} 17... h5 {[%clk 0:00:09.7]} 18.
Be3 {[%clk 0:00:03.7]} 18... h4 {[%clk 0:00:09.4]} 19. Qf2 {[%clk 0:00:03.6]}
19... Nc6 {[%clk 0:00:06.4]} 20. Kg1 {[%clk 0:00:03.1]} 20... Rh6 {[%clk
0:00:06]} 21. h3 {[%clk 0:00:01.7]} 21... Nxe5 {[%clk 0:00:04.9]} 22. fxe5
{[%clk 0:00:02.1]} 22... Rxg6 {[%clk 0:00:05.7]} 23. exf6 {[%clk 0:00:02.7]}
23... Rxg2+ {[%clk 0:00:05.1]} 24. Qxg2 {[%clk 0:00:01.9]} 24... Bxg2 {[%clk
0:00:06]} 25. f7+ {[%clk 0:00:01.7]} 25... Kh8 {[%clk 0:00:05.6]} 26. Kxg2
{[%clk 0:00:02.6]} 26... Qc6+ {[%clk 0:00:05.8]} 27. Rf3 {[%clk 0:00:02.8]}
27... e6 {[%clk 0:00:04.9]} 28. Rf1 {[%clk 0:00:03]} 28... Bd6 {[%clk
0:00:05.3]} 29. Rf2 {[%clk 0:00:03]} 29... Rf8 {[%clk 0:00:05.6]} 30. Kg1 {[%clk
0:00:02.5]} 30... Bg3 {[%clk 0:00:05.8]} 31. Rf4 {[%clk 0:00:01.6]} 31... Bxf2+
{[%clk 0:00:05.5]} 32. Kxf2 {[%clk 0:00:01.7]} 32... g5 {[%clk 0:00:06.1]} 33.
Rf6 {[%clk 0:00:01.8]} 33... Kg7 {[%clk 0:00:06.7]} 34. Bxg5 {[%clk 0:00:01.4]}
34... Qc5+ {[%clk 0:00:07]} 0-1

[Event "Late-Titled-Tuesday-Blitz-May-14-2024"]
[Site "Chess.com"]
[Date "2024.05.14"]
[Round "4"]
[White "KuzubovYuriy"]
[Black "Revan_2002"]
[Result "1-0"]
[WhiteElo "2935"]
[BlackElo "2762"]
[TimeControl "180+1"]
[EndTime "14:39:31 PDT"]
[Termination "KuzubovYuriy won by resignation"]

1. d4 {[%clk 0:03:00.9]} 1... Nf6 {[%clk 0:02:59.4]} 2. Nf3 {[%clk 0:03:01.5]}
2... g6 {[%clk 0:02:58]} 3. Nbd2 {[%clk 0:03:02]} 3... Bg7 {[%clk 0:02:58.2]} 4.
e4 {[%clk 0:03:02.1]} 4... d6 {[%clk 0:02:58.8]} 5. Bd3 {[%clk 0:03:00]} 5...
O-O {[%clk 0:02:59.4]} 6. O-O {[%clk 0:03:00.3]} 6... Nbd7 {[%clk 0:02:59.8]} 7.
Re1 {[%clk 0:03:00.4]} 7... e5 {[%clk 0:02:59.8]} 8. c3 {[%clk 0:02:59.7]} 8...
Re8 {[%clk 0:02:54.9]} 9. Nf1 {[%clk 0:02:56.7]} 9... b6 {[%clk 0:02:54.9]} 10.
Ng3 {[%clk 0:02:56.3]} 10... Bb7 {[%clk 0:02:55.5]} 11. h3 {[%clk 0:02:54.4]}
11... a5 {[%clk 0:02:50.9]} 12. a4 {[%clk 0:02:53.5]} 12... c6 {[%clk
0:02:40.7]} 13. Be3 {[%clk 0:02:47.6]} 13... Qc7 {[%clk 0:02:40.1]} 14. Qd2
{[%clk 0:02:45]} 14... Ba6 {[%clk 0:02:39.3]} 15. Bc2 {[%clk 0:02:37.5]} 15...
Rad8 {[%clk 0:02:35.4]} 16. Rad1 {[%clk 0:02:36.3]} 16... d5 {[%clk 0:02:20.4]}
17. Bg5 {[%clk 0:02:12.9]} 17... dxe4 {[%clk 0:02:15.4]} 18. Nxe4 {[%clk
0:02:11.9]} 18... Nxe4 {[%clk 0:02:11]} 19. Bxe4 {[%clk 0:02:08.6]} 19... f6
{[%clk 0:01:59.8]} 20. Bh4 {[%clk 0:02:08.3]} 20... Nc5 {[%clk 0:01:58.1]} 21.
Qc2 {[%clk 0:01:42.9]} 21... Nxe4 {[%clk 0:01:55.3]} 22. Rxe4 {[%clk 0:01:43.2]}
22... Qd7 {[%clk 0:00:55.9]} 23. Rde1 {[%clk 0:01:26.2]} 23... Bc4 {[%clk
0:00:37.7]} 24. dxe5 {[%clk 0:01:18.8]} 24... Bd5 {[%clk 0:00:28.1]} 25. R4e3
{[%clk 0:01:06.6]} 25... Qf7 {[%clk 0:00:27.5]} 26. Bxf6 {[%clk 0:01:02.8]}
26... Bxf6 {[%clk 0:00:27.4]} 27. exf6 {[%clk 0:01:02.7]} 27... Rxe3 {[%clk
0:00:28.1]} 28. Rxe3 {[%clk 0:01:02.5]} 28... Qxf6 {[%clk 0:00:28.8]} 29. Qe2
{[%clk 0:00:56.9]} 29... Rf8 {[%clk 0:00:25.5]} 30. c4 {[%clk 0:00:48.6]} 30...
Bf7 {[%clk 0:00:24]} 31. b3 {[%clk 0:00:47.6]} 31... Rd8 {[%clk 0:00:18]} 32.
Ne5 {[%clk 0:00:47.4]} 32... c5 {[%clk 0:00:18.3]} 33. Rf3 {[%clk 0:00:45.2]}
33... Qe6 {[%clk 0:00:03.7]} 34. Rxf7 {[%clk 0:00:44.2]} 34... Re8 {[%clk
0:00:04.3]} 35. Rb7 {[%clk 0:00:39]} 35... Qxe5 {[%clk 0:00:03.8]} 36. Qxe5
{[%clk 0:00:38.3]} 36... Rxe5 {[%clk 0:00:04.4]} 37. Rxb6 {[%clk 0:00:39]} 37...
Re1+ {[%clk 0:00:04.5]} 38. Kh2 {[%clk 0:00:39.5]} 38... Re2 {[%clk 0:00:05.1]}
39. Kg3 {[%clk 0:00:38.9]} 39... Rc2 {[%clk 0:00:05.1]} 40. Rb5 {[%clk
0:00:38.5]} 40... Kf7 {[%clk 0:00:05.1]} 41. f3 {[%clk 0:00:38]} 41... Rc3
{[%clk 0:00:05.2]} 42. Rxc5 {[%clk 0:00:38.2]} 42... Rxb3 {[%clk 0:00:05.6]} 43.
Rxa5 {[%clk 0:00:38.8]} 43... Rb4 {[%clk 0:00:06]} 44. Ra7+ {[%clk 0:00:38.9]}
44... Kf6 {[%clk 0:00:06]} 45. Rxh7 {[%clk 0:00:38.5]} 45... Rxc4 {[%clk
0:00:06.5]} 46. Ra7 {[%clk 0:00:38.5]} 46... Kg5 {[%clk 0:00:06.4]} 47. a5
{[%clk 0:00:38.2]} 47... Ra4 {[%clk 0:00:06.5]} 48. Ra8 {[%clk 0:00:38.6]} 48...
Kf5 {[%clk 0:00:07.2]} 49. a6 {[%clk 0:00:39.1]} 49... Kg5 {[%clk 0:00:07.8]}
50. a7 {[%clk 0:00:38.4]} 50... Ra3 {[%clk 0:00:08]} 51. h4+ {[%clk 0:00:38.2]}
1-0

[Event "Late-Titled-Tuesday-Blitz-May-14-2024"]
[Site "Chess.com"]
[Date "2024.05.14"]
[Round "4"]
[White "Sinquefield"]
[Black "Alexander_Donchenko"]
[Result "0-1"]
[WhiteElo "2575"]
[BlackElo "2849"]
[TimeControl "180+1"]
[EndTime "14:39:31 PDT"]
[Termination "Alexander_Donchenko won by resignation"]

1. d4 {[%clk 0:03:00.9]} 1... Nf6 {[%clk 0:02:57.5]} 2. Nf3 {[%clk 0:03:01.2]}
2... e6 {[%clk 0:02:57.3]} 3. Bg5 {[%clk 0:03:01.4]} 3... h6 {[%clk 0:02:56.8]}
4. Bh4 {[%clk 0:03:01.2]} 4... b6 {[%clk 0:02:55.7]} 5. Nbd2 {[%clk 0:03:01.3]}
5... Bb7 {[%clk 0:02:56]} 6. e3 {[%clk 0:03:01.9]} 6... c5 {[%clk 0:02:55.3]} 7.
c3 {[%clk 0:03:01.9]} 7... Be7 {[%clk 0:02:53]} 8. Bd3 {[%clk 0:03:01.5]} 8...
d5 {[%clk 0:02:53.3]} 9. O-O {[%clk 0:03:01.4]} 9... O-O {[%clk 0:02:53.5]} 10.
Ne5 {[%clk 0:03:01.2]} 10... Nbd7 {[%clk 0:02:50.5]} 11. f4 {[%clk 0:02:59.5]}
11... Ne4 {[%clk 0:02:50.8]} 12. Bxe7 {[%clk 0:02:56]} 12... Qxe7 {[%clk
0:02:51.7]} 13. Ndf3 {[%clk 0:02:52.7]} 13... Nxe5 {[%clk 0:02:48.5]} 14. Nxe5
{[%clk 0:02:52.7]} 14... a5 {[%clk 0:02:41.9]} 15. Bxe4 {[%clk 0:02:50.8]} 15...
dxe4 {[%clk 0:02:42]} 16. Qh5 {[%clk 0:02:49.7]} 16... Rfe8 {[%clk 0:02:25.1]}
17. g4 {[%clk 0:02:47.7]} 17... f6 {[%clk 0:02:24.2]} 18. Ng6 {[%clk 0:02:48]}
18... Qf7 {[%clk 0:02:24.1]} 19. f5 {[%clk 0:02:26.9]} 19... cxd4 {[%clk
0:02:24]} 20. cxd4 {[%clk 0:02:26.2]} 20... Rac8 {[%clk 0:02:19.9]} 21. Rac1
{[%clk 0:02:26.1]} 21... Ba6 {[%clk 0:02:18.9]} 22. Rfe1 {[%clk 0:02:23.1]}
22... Bd3 {[%clk 0:02:08.5]} 23. fxe6 {[%clk 0:02:18.6]} 23... Qxe6 {[%clk
0:02:05.4]} 24. Qf5 {[%clk 0:02:18]} 24... Qxf5 {[%clk 0:02:00]} 25. gxf5 {[%clk
0:02:16.4]} 25... Kf7 {[%clk 0:02:00]} 26. Kf2 {[%clk 0:02:06.3]} 26... Bb5
{[%clk 0:01:59.2]} 27. Kg3 {[%clk 0:02:06.1]} 27... Bc4 {[%clk 0:01:47.5]} 28.
b3 {[%clk 0:02:03.9]} 28... Bd3 {[%clk 0:01:47.8]} 29. Nf4 {[%clk 0:01:41.8]}
29... Red8 {[%clk 0:01:41.7]} 30. Red1 {[%clk 0:01:37.7]} 30... Ba6 {[%clk
0:01:35.9]} 31. Rg1 {[%clk 0:01:33]} 31... Bb5 {[%clk 0:01:33.2]} 32. Ne6 {[%clk
0:01:31.6]} 32... Rg8 {[%clk 0:01:32.2]} 33. Kf4 {[%clk 0:01:24.2]} 33... Bd7
{[%clk 0:01:30.7]} 34. Rxc8 {[%clk 0:01:19.6]} 34... Bxc8 {[%clk 0:01:31.6]} 35.
d5 {[%clk 0:01:15.9]} 35... g5+ {[%clk 0:01:07.1]} 36. Kxe4 {[%clk 0:01:13.7]}
36... Ke7 {[%clk 0:01:03.1]} 37. Rc1 {[%clk 0:01:10.8]} 37... Bd7 {[%clk
0:01:03.5]} 38. Rc7 {[%clk 0:01:08.6]} 38... Rb8 {[%clk 0:01:02.7]} 39. Ra7
{[%clk 0:01:00.7]} 39... Kd6 {[%clk 0:01:01.5]} 40. a4 {[%clk 0:00:42]} 40... h5
{[%clk 0:01:01]} 41. Kd4 {[%clk 0:00:34.6]} 41... h4 {[%clk 0:01:00.1]} 42. e4
{[%clk 0:00:33.9]} 42... Rh8 {[%clk 0:00:51]} 43. Rb7 {[%clk 0:00:31.9]} 43...
g4 {[%clk 0:00:51.4]} 44. Rxb6+ {[%clk 0:00:31.1]} 44... Ke7 {[%clk 0:00:52.1]}
45. Nf4 {[%clk 0:00:28.8]} 45... g3 {[%clk 0:00:49.8]} 46. hxg3 {[%clk
0:00:23.5]} 46... h3 {[%clk 0:00:50.2]} 47. Ng6+ {[%clk 0:00:22.1]} 47... Kd8
{[%clk 0:00:49.1]} 48. Rb8+ {[%clk 0:00:19.4]} 48... Bc8 {[%clk 0:00:48.9]} 49.
Nxh8 {[%clk 0:00:17.7]} 49... h2 {[%clk 0:00:49.2]} 50. Nf7+ {[%clk 0:00:18]}
50... Kc7 {[%clk 0:00:48.6]} 51. Rb5 {[%clk 0:00:14]} 51... h1=Q {[%clk
0:00:47.9]} 52. Rc5+ {[%clk 0:00:14.6]} 52... Kb8 {[%clk 0:00:47.7]} 53. Rc4
{[%clk 0:00:12]} 53... Qg1+ {[%clk 0:00:46.5]} 54. Kd3 {[%clk 0:00:10.3]} 54...
Ba6 {[%clk 0:00:45.9]} 55. Nd6 {[%clk 0:00:10.5]} 55... Qxg3+ {[%clk 0:00:45.5]}
56. Kd4 {[%clk 0:00:10.2]} 56... Qxd6 {[%clk 0:00:45.6]} 57. Rc6 {[%clk
0:00:10.5]} 57... Qb4+ {[%clk 0:00:45.3]} 0-1

[Event "Late-Titled-Tuesday-Blitz-May-14-2024"]
[Site "Chess.com"]
[Date "2024.05.14"]
[Round "4"]
[White "The_Straightforward_Rook"]
[Black "Felix-Rose"]
[Result "1/2-1/2"]
[WhiteElo "2492"]
[BlackElo "2289"]
[TimeControl "180+1"]
[EndTime "14:39:32 PDT"]
[Termination "Game drawn by repetition"]

1. d4 {[%clk 0:02:58]} 1... d5 {[%clk 0:02:59.7]} 2. Nf3 {[%clk 0:02:57.3]} 2...
Nf6 {[%clk 0:02:59.4]} 3. c4 {[%clk 0:02:57.5]} 3... e6 {[%clk 0:02:58.5]} 4.
Nc3 {[%clk 0:02:57.7]} 4... Be7 {[%clk 0:02:58]} 5. g4 {[%clk 0:02:57.9]} 5...
c5 {[%clk 0:02:49.9]} 6. Qc2 {[%clk 0:02:35.9]} 6... cxd4 {[%clk 0:02:46.3]} 7.
Nxd4 {[%clk 0:02:35.3]} 7... dxc4 {[%clk 0:02:44]} 8. g5 {[%clk 0:02:26.4]} 8...
Qxd4 {[%clk 0:02:42.4]} 9. gxf6 {[%clk 0:02:26.2]} 9... Bxf6 {[%clk 0:02:40.1]}
10. Be3 {[%clk 0:02:25.9]} 10... Qd8 {[%clk 0:02:35.7]} 11. Bc5 {[%clk
0:02:16.8]} 11... Qa5 {[%clk 0:02:26.4]} 12. Ba3 {[%clk 0:02:10.4]} 12... Bxc3+
{[%clk 0:02:13.2]} 13. Qxc3 {[%clk 0:02:11.3]} 13... Qxc3+ {[%clk 0:02:13.1]}
14. bxc3 {[%clk 0:02:12.2]} 14... Bd7 {[%clk 0:02:10.2]} 15. Rg1 {[%clk
0:02:09.5]} 15... g6 {[%clk 0:02:09]} 16. e3 {[%clk 0:02:06.3]} 16... b5 {[%clk
0:02:09.4]} 17. Rb1 {[%clk 0:01:59.1]} 17... a6 {[%clk 0:02:05.5]} 18. Bd6
{[%clk 0:01:52.9]} 18... Nc6 {[%clk 0:02:05.4]} 19. a4 {[%clk 0:01:52.2]} 19...
Na5 {[%clk 0:01:56.4]} 20. Bg2 {[%clk 0:01:48.9]} 20... Rc8 {[%clk 0:01:52.8]}
21. axb5 {[%clk 0:01:42.3]} 21... axb5 {[%clk 0:01:52.6]} 22. Bb4 {[%clk
0:01:38.2]} 22... Nb3 {[%clk 0:01:51.9]} 23. Rd1 {[%clk 0:01:27.1]} 23... Nc5
{[%clk 0:01:34.4]} 24. Ke2 {[%clk 0:01:20]} 24... Nd3 {[%clk 0:01:33.6]} 25. Ra1
{[%clk 0:01:19.7]} 25... Nxb4 {[%clk 0:01:31.5]} 26. cxb4 {[%clk 0:01:19.9]}
26... O-O {[%clk 0:01:31.9]} 27. Ra7 {[%clk 0:01:15.6]} 27... Rfd8 {[%clk
0:01:27.9]} 28. Rd1 {[%clk 0:01:12.5]} 28... Be8 {[%clk 0:01:26.2]} 29. Rb7
{[%clk 0:01:04.3]} 29... Rxd1 {[%clk 0:01:20.7]} 30. Kxd1 {[%clk 0:01:04.3]}
30... Kg7 {[%clk 0:01:20.6]} 31. f4 {[%clk 0:00:59.6]} 31... Kf6 {[%clk
0:01:20.9]} 32. Be4 {[%clk 0:00:57.4]} 32... h6 {[%clk 0:01:20.7]} 33. h4 {[%clk
0:00:56.7]} 33... Rd8+ {[%clk 0:01:12.1]} 34. Kc2 {[%clk 0:00:55.7]} 34... Rd6
{[%clk 0:00:57.8]} 35. Kc3 {[%clk 0:00:45.7]} 35... Bd7 {[%clk 0:00:57.4]} 36.
Rb8 {[%clk 0:00:43.8]} 36... e5 {[%clk 0:00:54.2]} 37. Rh8 {[%clk 0:00:32.5]}
37... exf4 {[%clk 0:00:47.9]} 38. exf4 {[%clk 0:00:32.1]} 38... Re6 {[%clk
0:00:45.3]} 39. Kd4 {[%clk 0:00:28.6]} 39... Rd6+ {[%clk 0:00:38.4]} 40. Kc3
{[%clk 0:00:26.3]} 40... h5 {[%clk 0:00:36]} 41. Rd8 {[%clk 0:00:22.4]} 41...
Ke7 {[%clk 0:00:31.4]} 42. Rb8 {[%clk 0:00:22.4]} 42... Rd1 {[%clk 0:00:26.8]}
43. Rb7 {[%clk 0:00:21.9]} 43... Kd6 {[%clk 0:00:20.9]} 44. Rb6+ {[%clk
0:00:21.5]} 44... Ke7 {[%clk 0:00:21.3]} 45. Rb7 {[%clk 0:00:21.7]} 45... Ke6
{[%clk 0:00:19.9]} 46. Rb6+ {[%clk 0:00:20.5]} 46... Rd6 {[%clk 0:00:16.2]} 47.
Rb7 {[%clk 0:00:19.9]} 47... Rd1 {[%clk 0:00:14.1]} 48. Rb6+ {[%clk 0:00:19.8]}
48... Ke7 {[%clk 0:00:14.5]} 49. Rb7 {[%clk 0:00:20.2]} 1/2-1/2

[Event "Late-Titled-Tuesday-Blitz-May-14-2024"]
[Site "Chess.com"]
[Date "2024.05.14"]
[Round "4"]
[White "marvinguevara"]
[Black "Christian-Toth"]
[Result "0-1"]
[WhiteElo "2194"]
[BlackElo "2379"]
[TimeControl "180+1"]
[EndTime "14:39:32 PDT"]
[Termination "Christian-Toth won by resignation"]

1. e4 {[%clk 0:02:53.2]} 1... e5 {[%clk 0:02:59.9]} 2. Nf3 {[%clk 0:02:52.9]}
2... Nf6 {[%clk 0:03:00.3]} 3. Bc4 {[%clk 0:02:53.5]} 3... Nxe4 {[%clk
0:02:57.1]} 4. d3 {[%clk 0:02:53.4]} 4... Nf6 {[%clk 0:02:54.6]} 5. Nxe5 {[%clk
0:02:53.8]} 5... d5 {[%clk 0:02:54.5]} 6. Bb3 {[%clk 0:02:54.4]} 6... Bd6 {[%clk
0:02:54.2]} 7. d4 {[%clk 0:02:53.8]} 7... O-O {[%clk 0:02:51.6]} 8. O-O {[%clk
0:02:53.4]} 8... c5 {[%clk 0:02:46]} 9. c3 {[%clk 0:02:52]} 9... Nc6 {[%clk
0:02:32.8]} 10. Nxc6 {[%clk 0:02:46.1]} 10... bxc6 {[%clk 0:02:33.7]} 11. Bc2
{[%clk 0:02:44.8]} 11... Bg4 {[%clk 0:02:30]} 12. Qd3 {[%clk 0:02:38.5]} 12...
Bh5 {[%clk 0:02:27.6]} 13. Qa6 {[%clk 0:02:33.5]} 13... Qb6 {[%clk 0:02:23.8]}
14. Qa4 {[%clk 0:02:24.1]} 14... Rfe8 {[%clk 0:01:53.2]} 15. Nd2 {[%clk
0:02:12.9]} 15... Re6 {[%clk 0:01:35.1]} 16. Nb3 {[%clk 0:02:03.5]} 16... Be2
{[%clk 0:01:29.2]} 17. dxc5 {[%clk 0:01:50.1]} 17... Bxc5 {[%clk 0:01:30.1]} 18.
Nxc5 {[%clk 0:01:47.7]} 18... Qxc5 {[%clk 0:01:31]} 19. Be3 {[%clk 0:01:41.6]}
19... Rxe3 {[%clk 0:01:17.7]} 20. fxe3 {[%clk 0:01:41.4]} 20... Qxe3+ {[%clk
0:01:18.5]} 21. Rf2 {[%clk 0:01:41.3]} 21... Ng4 {[%clk 0:01:05.6]} 22. Qf4
{[%clk 0:01:31.7]} 22... Qxf2+ {[%clk 0:01:02.9]} 23. Qxf2 {[%clk 0:01:31.8]}
23... Nxf2 {[%clk 0:01:03.2]} 24. Kxf2 {[%clk 0:01:32.7]} 24... Bg4 {[%clk
0:01:00.8]} 25. Re1 {[%clk 0:01:29.3]} 25... Be6 {[%clk 0:00:59.4]} 26. Ke3
{[%clk 0:01:26.5]} 26... Kf8 {[%clk 0:00:58.2]} 27. Kd4 {[%clk 0:01:26.3]} 27...
Ke7 {[%clk 0:00:56.1]} 28. Kc5 {[%clk 0:01:26.4]} 28... Kd7 {[%clk 0:00:56]} 29.
a4 {[%clk 0:01:25.5]} 29... Kc7 {[%clk 0:00:50.8]} 30. b4 {[%clk 0:01:24.2]}
30... a5 {[%clk 0:00:45.4]} 31. b5 {[%clk 0:01:20.9]} 31... cxb5 {[%clk
0:00:45.2]} 32. axb5 {[%clk 0:01:18.4]} 32... Kb7 {[%clk 0:00:39.6]} 33. Bb3
{[%clk 0:01:12.2]} 33... Rc8+ {[%clk 0:00:37.2]} 34. Kd4 {[%clk 0:01:12]} 34...
Kb6 {[%clk 0:00:36.5]} 35. Rb1 {[%clk 0:01:11.4]} 35... Rc5 {[%clk 0:00:33.5]}
36. Bc2 {[%clk 0:00:33.4]} 36... Rxb5 {[%clk 0:00:29.8]} 37. Re1 {[%clk
0:00:30.3]} 37... h6 {[%clk 0:00:25.3]} 38. Re3 {[%clk 0:00:25.2]} 38... Rb2
{[%clk 0:00:23.9]} 39. Re2 {[%clk 0:00:17.5]} 39... a4 {[%clk 0:00:20.1]} 40.
Ke3 {[%clk 0:00:12.3]} 40... a3 {[%clk 0:00:19.7]} 41. Kd2 {[%clk 0:00:08]}
41... a2 {[%clk 0:00:18.5]} 42. Re1 {[%clk 0:00:08.7]} 42... Bf5 {[%clk
0:00:18.1]} 43. Ke3 {[%clk 0:00:06.7]} 43... Rxc2 {[%clk 0:00:17.7]} 0-1

[Event "Late-Titled-Tuesday-Blitz-May-14-2024"]
[Site "Chess.com"]
[Date "2024.05.14"]
[Round "4"]
[White "volcanoexplorer"]
[Black "yobdc"]
[Result "0-1"]
[WhiteElo "2703"]
[BlackElo "2499"]
[TimeControl "180+1"]
[EndTime "14:39:35 PDT"]
[Termination "yobdc won by checkmate"]

1. e4 {[%clk 0:03:00.9]} 1... c5 {[%clk 0:02:59.7]} 2. Nf3 {[%clk 0:03:00.4]}
2... Nf6 {[%clk 0:03:00.1]} 3. e5 {[%clk 0:02:58.1]} 3... Nd5 {[%clk 0:03:00.4]}
4. Nc3 {[%clk 0:02:58.6]} 4... Nxc3 {[%clk 0:03:00.8]} 5. dxc3 {[%clk 0:02:59]}
5... Nc6 {[%clk 0:03:01.5]} 6. Bf4 {[%clk 0:02:58.2]} 6... Qb6 {[%clk
0:03:01.8]} 7. b3 {[%clk 0:02:55.8]} 7... Qc7 {[%clk 0:03:02.1]} 8. Qd2 {[%clk
0:02:55.4]} 8... e6 {[%clk 0:03:02.5]} 9. Be2 {[%clk 0:02:52.8]} 9... b6 {[%clk
0:02:58.8]} 10. O-O {[%clk 0:02:51.5]} 10... h6 {[%clk 0:02:56.4]} 11. Bg3
{[%clk 0:02:38.5]} 11... Bb7 {[%clk 0:02:56.4]} 12. Rfd1 {[%clk 0:02:29.3]}
12... Ne7 {[%clk 0:02:49.8]} 13. Qf4 {[%clk 0:02:17.1]} 13... Nf5 {[%clk
0:02:40.2]} 14. Nd2 {[%clk 0:02:10.5]} 14... g5 {[%clk 0:02:32.6]} 15. Qg4
{[%clk 0:02:06]} 15... h5 {[%clk 0:02:09.8]} 16. Qxg5 {[%clk 0:02:05.8]} 16...
Be7 {[%clk 0:02:09.3]} 17. Qf4 {[%clk 0:02:02.9]} 17... h4 {[%clk 0:02:07.1]}
18. Bg4 {[%clk 0:01:47.9]} 18... hxg3 {[%clk 0:02:04.3]} 19. hxg3 {[%clk
0:01:48.8]} 19... Nh6 {[%clk 0:01:39.5]} 20. Be2 {[%clk 0:01:41.9]} 20... d5
{[%clk 0:01:16.9]} 21. exd6 {[%clk 0:01:40]} 21... Bxd6 {[%clk 0:01:11.3]} 22.
Bb5+ {[%clk 0:01:32.6]} 22... Kf8 {[%clk 0:01:03.5]} 23. Qf6 {[%clk 0:01:28.3]}
23... Be5 {[%clk 0:01:02.6]} 24. Qg5 {[%clk 0:01:24.5]} 24... f6 {[%clk
0:00:46.2]} 25. Qe3 {[%clk 0:01:19.3]} 25... Nf5 {[%clk 0:00:45.2]} 26. Qd3
{[%clk 0:00:55.4]} 26... Qh7 {[%clk 0:00:39.3]} 27. f4 {[%clk 0:00:55.3]} 27...
Qh1+ {[%clk 0:00:37.2]} 28. Kf2 {[%clk 0:00:51.2]} 28... Qxg2+ {[%clk
0:00:37.2]} 29. Ke1 {[%clk 0:00:51.9]} 29... Rh2 {[%clk 0:00:22.6]} 30. Rdb1
{[%clk 0:00:27.8]} 30... Nxg3 {[%clk 0:00:14.9]} 31. fxe5 {[%clk 0:00:10]} 31...
Qf2+ {[%clk 0:00:09.4]} 32. Kd1 {[%clk 0:00:10.4]} 32... Rh1+ {[%clk 0:00:09.7]}
33. Nf1 {[%clk 0:00:10]} 33... Rxf1+ {[%clk 0:00:10]} 34. Qxf1 {[%clk
0:00:10.2]} 34... Nxf1 {[%clk 0:00:10.2]} 35. Kc1 {[%clk 0:00:10.6]} 35... Ne3
{[%clk 0:00:09.6]} 36. Bd3 {[%clk 0:00:10.8]} 36... Rd8 {[%clk 0:00:08.1]} 37.
Bg6 {[%clk 0:00:10.2]} 37... f5 {[%clk 0:00:07.7]} 38. Kb2 {[%clk 0:00:10.6]}
38... Qxc2+ {[%clk 0:00:07.6]} 39. Ka3 {[%clk 0:00:11.3]} 39... Qxc3 {[%clk
0:00:07.9]} 40. Rh1 {[%clk 0:00:08.8]} 40... Qa5+ {[%clk 0:00:08]} 41. Kb2
{[%clk 0:00:09.1]} 41... Rd2+ {[%clk 0:00:08.5]} 42. Kb1 {[%clk 0:00:09.8]}
42... Qc3 {[%clk 0:00:08.1]} 43. Rh8+ {[%clk 0:00:09.6]} 43... Kg7 {[%clk
0:00:08.1]} 44. Rh7+ {[%clk 0:00:09.9]} 44... Kg8 {[%clk 0:00:08]} 45. Rh6
{[%clk 0:00:10.7]} 45... Qb2# {[%clk 0:00:07.4]} 0-1

[Event "Late-Titled-Tuesday-Blitz-May-14-2024"]
[Site "Chess.com"]
[Date "2024.05.14"]
[Round "4"]
[White "Mbneu"]
[Black "jinbojinbo"]
[Result "0-1"]
[WhiteElo "2258"]
[BlackElo "2633"]
[TimeControl "180+1"]
[EndTime "14:39:36 PDT"]
[Termination "jinbojinbo won by resignation"]

1. d4 {[%clk 0:02:56.9]} 1... f5 {[%clk 0:02:57.9]} 2. e4 {[%clk 0:02:55.4]}
2... fxe4 {[%clk 0:02:55.9]} 3. Nc3 {[%clk 0:02:55.9]} 3... Nf6 {[%clk
0:02:54.6]} 4. f3 {[%clk 0:02:54.5]} 4... d5 {[%clk 0:02:54.7]} 5. Bg5 {[%clk
0:02:52.8]} 5... Bf5 {[%clk 0:02:51.4]} 6. Nge2 {[%clk 0:02:52.8]} 6... Nc6
{[%clk 0:02:47.4]} 7. Ng3 {[%clk 0:02:50.4]} 7... Bg6 {[%clk 0:02:46.9]} 8. Bb5
{[%clk 0:02:49.9]} 8... Qd7 {[%clk 0:02:43.4]} 9. fxe4 {[%clk 0:02:47.8]} 9...
a6 {[%clk 0:02:25.9]} 10. Bxc6 {[%clk 0:02:39.8]} 10... Qxc6 {[%clk 0:02:25.3]}
11. e5 {[%clk 0:02:36.4]} 11... Nd7 {[%clk 0:02:15.9]} 12. O-O {[%clk
0:02:31.4]} 12... O-O-O {[%clk 0:02:11.6]} 13. Qf3 {[%clk 0:02:06.9]} 13... h6
{[%clk 0:02:07.2]} 14. Bh4 {[%clk 0:01:51]} 14... Nb6 {[%clk 0:02:05.9]} 15. Nf5
{[%clk 0:01:35.4]} 15... Bxf5 {[%clk 0:01:54.3]} 16. Qxf5+ {[%clk 0:01:33.5]}
16... e6 {[%clk 0:01:54.5]} 17. Qf7 {[%clk 0:01:23.1]} 17... g5 {[%clk
0:01:48.7]} 18. Bg3 {[%clk 0:01:18.9]} 18... Bb4 {[%clk 0:01:45.2]} 19. Rf6
{[%clk 0:00:52.5]} 19... Bxc3 {[%clk 0:01:44.4]} 20. bxc3 {[%clk 0:00:51.7]}
20... Qxc3 {[%clk 0:01:43.4]} 21. Rd1 {[%clk 0:00:50.5]} 21... Qxc2 {[%clk
0:01:40.1]} 22. Qxe6+ {[%clk 0:00:46.2]} 22... Kb8 {[%clk 0:01:39.5]} 23. Rdf1
{[%clk 0:00:46.6]} 23... Qe4 {[%clk 0:01:17.2]} 24. Bf2 {[%clk 0:00:35.7]} 24...
Nc4 {[%clk 0:00:56.1]} 25. Rxh6 {[%clk 0:00:32]} 25... Ne3 {[%clk 0:00:51.6]}
26. Bxe3 {[%clk 0:00:25.3]} 26... Qxe3+ {[%clk 0:00:52.5]} 27. Kh1 {[%clk
0:00:25.5]} 27... Qxd4 {[%clk 0:00:51.8]} 28. Rxh8 {[%clk 0:00:24]} 28... Rxh8
{[%clk 0:00:52.7]} 29. Qf5 {[%clk 0:00:19.1]} 29... g4 {[%clk 0:00:45.2]} 30. e6
{[%clk 0:00:17.5]} 30... g3 {[%clk 0:00:44.9]} 31. h3 {[%clk 0:00:15.8]} 31...
Re8 {[%clk 0:00:39.9]} 32. Qf7 {[%clk 0:00:15.4]} 32... Qa4 {[%clk 0:00:24.2]}
33. e7 {[%clk 0:00:11.4]} 33... Qd7 {[%clk 0:00:23.4]} 34. Re1 {[%clk
0:00:10.3]} 34... d4 {[%clk 0:00:22.3]} 35. Qf3 {[%clk 0:00:03.6]} 35... d3
{[%clk 0:00:19.1]} 36. Qxg3 {[%clk 0:00:03.6]} 36... d2 {[%clk 0:00:19]} 37. Rd1
{[%clk 0:00:03.8]} 37... Rxe7 {[%clk 0:00:19]} 38. Qf2 {[%clk 0:00:03.9]} 38...
Rf7 {[%clk 0:00:18.8]} 39. Qxd2 {[%clk 0:00:03.3]} 39... Rf1+ {[%clk 0:00:18.4]}
40. Kh2 {[%clk 0:00:03.6]} 40... Rxd1 {[%clk 0:00:18.5]} 0-1